[Event "Early-Titled-Tuesday-Blitz-March-26-2024"]
[Site "Chess.com"]
[Date "2024.03.26"]
[Round "6"]
[White "MNyuyu"]
[Black "ernestina08chess"]
[Result "1-0"]
[WhiteElo "2414"]
[BlackElo "2233"]
[TimeControl "180+1"]
[EndTime "9:03:19 PDT"]
[Termination "MNyuyu won by resignation"]

1. d4 {[%clk 0:03:00.9]} 1... Nf6 {[%clk 0:02:59.4]} 2. Nf3 {[%clk 0:02:59.9]}
2... g6 {[%clk 0:02:58.6]} 3. c4 {[%clk 0:02:59.2]} 3... Bg7 {[%clk 0:02:58.6]}
4. Nc3 {[%clk 0:02:59.9]} 4... d5 {[%clk 0:02:58.6]} 5. cxd5 {[%clk 0:02:57.8]}
5... Nxd5 {[%clk 0:02:59.2]} 6. Bd2 {[%clk 0:02:55.7]} 6... Nb6 {[%clk
0:02:55.1]} 7. e3 {[%clk 0:02:55.7]} 7... O-O {[%clk 0:02:54.3]} 8. Be2 {[%clk
0:02:55.6]} 8... N8d7 {[%clk 0:02:42]} 9. O-O {[%clk 0:02:56]} 9... c5 {[%clk
0:02:42.1]} 10. d5 {[%clk 0:02:35]} 10... Nf6 {[%clk 0:02:23.5]} 11. e4 {[%clk
0:02:34.6]} 11... e6 {[%clk 0:02:19.7]} 12. Bg5 {[%clk 0:02:26.4]} 12... Qe8
{[%clk 0:01:48.9]} 13. Bxf6 {[%clk 0:02:24.5]} 13... Bxf6 {[%clk 0:01:47.3]} 14.
e5 {[%clk 0:02:24.8]} 14... Bg7 {[%clk 0:01:48]} 15. d6 {[%clk 0:02:24.8]} 15...
Bd7 {[%clk 0:01:48]} 16. a4 {[%clk 0:02:19.2]} 16... Bc6 {[%clk 0:01:39.7]} 17.
Re1 {[%clk 0:02:19.2]} 17... Qd7 {[%clk 0:01:35.4]} 18. Bb5 {[%clk 0:02:07.4]}
18... f6 {[%clk 0:01:13.4]} 19. Bxc6 {[%clk 0:01:53.4]} 19... Qxc6 {[%clk
0:01:13.3]} 20. exf6 {[%clk 0:01:50.8]} 20... Rxf6 {[%clk 0:01:10.5]} 21. Ne5
{[%clk 0:01:46.7]} 21... Qc8 {[%clk 0:01:03]} 22. d7 {[%clk 0:01:40.8]} 22...
Qd8 {[%clk 0:01:03.1]} 23. a5 {[%clk 0:01:36.5]} 23... Nd5 {[%clk 0:01:00.3]}
24. Nxd5 {[%clk 0:01:35.8]} 24... exd5 {[%clk 0:01:01.2]} 25. Qxd5+ {[%clk
0:01:35.1]} 25... Kf8 {[%clk 0:00:52.7]} 26. Nxg6+ {[%clk 0:01:33.9]} 26... hxg6
{[%clk 0:00:48.5]} 27. Re8+ {[%clk 0:01:34.1]} 27... Qxe8 {[%clk 0:00:49.1]} 28.
dxe8=Q+ {[%clk 0:01:33.8]} 28... Rxe8 {[%clk 0:00:49.8]} 29. Qxc5+ {[%clk
0:01:29.7]} 29... Kg8 {[%clk 0:00:49]} 30. Qxa7 {[%clk 0:01:28]} 30... Rfe6
{[%clk 0:00:48.8]} 31. g3 {[%clk 0:01:25.1]} 31... Bxb2 {[%clk 0:00:45]} 32. Rb1
{[%clk 0:01:24.9]} 32... Bc3 {[%clk 0:00:42.7]} 33. Qxb7 {[%clk 0:01:23.6]}
33... Bd4 {[%clk 0:00:39]} 34. Qd5 {[%clk 0:01:21.4]} 34... Bf6 {[%clk
0:00:33.6]} 35. Rb6 {[%clk 0:01:13.6]} 1-0

[Event "Early-Titled-Tuesday-Blitz-March-26-2024"]
[Site "Chess.com"]
[Date "2024.03.26"]
[Round "6"]
[White "Gorbaev"]
[Black "ZenBull"]
[Result "1-0"]
[WhiteElo "2499"]
[BlackElo "2298"]
[TimeControl "180+1"]
[EndTime "9:03:20 PDT"]
[Termination "Gorbaev won by resignation"]

1. Nf3 {[%clk 0:03:00.9]} 1... c5 {[%clk 0:02:59.3]} 2. c4 {[%clk 0:02:59.3]}
2... Nc6 {[%clk 0:02:58.7]} 3. Nc3 {[%clk 0:02:59.4]} 3... Nf6 {[%clk
0:02:58.7]} 4. g3 {[%clk 0:02:59.6]} 4... e6 {[%clk 0:02:56.2]} 5. Bg2 {[%clk
0:02:59.7]} 5... Be7 {[%clk 0:02:56.3]} 6. O-O {[%clk 0:02:59.3]} 6... O-O
{[%clk 0:02:56.5]} 7. e4 {[%clk 0:02:57.8]} 7... d6 {[%clk 0:02:56.1]} 8. d4
{[%clk 0:02:57.3]} 8... cxd4 {[%clk 0:02:56.3]} 9. Nxd4 {[%clk 0:02:58]} 9... a6
{[%clk 0:02:53.3]} 10. Be3 {[%clk 0:02:55.4]} 10... Qc7 {[%clk 0:02:51.5]} 11.
Rc1 {[%clk 0:02:54.8]} 11... Ne5 {[%clk 0:02:49.4]} 12. b3 {[%clk 0:02:51.6]}
12... Ned7 {[%clk 0:02:42.9]} 13. f4 {[%clk 0:02:48.6]} 13... Rb8 {[%clk
0:02:41.3]} 14. g4 {[%clk 0:02:37.9]} 14... Rd8 {[%clk 0:02:11.4]} 15. g5 {[%clk
0:02:28]} 15... Ne8 {[%clk 0:02:11]} 16. f5 {[%clk 0:02:24]} 16... Ne5 {[%clk
0:02:05.4]} 17. Bh3 {[%clk 0:02:12.9]} 17... exf5 {[%clk 0:01:41]} 18. Nd5
{[%clk 0:02:09.2]} 18... Qa5 {[%clk 0:01:11.8]} 19. Nxf5 {[%clk 0:01:57.8]}
19... Bf8 {[%clk 0:01:07.9]} 20. Bb6 {[%clk 0:01:56.9]} 20... Qxa2 {[%clk
0:00:59.7]} 21. Ra1 {[%clk 0:01:29.6]} 21... Qb2 {[%clk 0:00:50.7]} 22. Bd4
{[%clk 0:01:28.6]} 22... Bxf5 {[%clk 0:00:44.6]} 23. Bxf5 {[%clk 0:01:18.4]}
23... Qxa1 {[%clk 0:00:18.9]} 24. Qxa1 {[%clk 0:01:12.4]} 24... Nc6 {[%clk
0:00:17.8]} 25. Bb6 {[%clk 0:01:10.4]} 1-0

[Event "Early-Titled-Tuesday-Blitz-March-26-2024"]
[Site "Chess.com"]
[Date "2024.03.26"]
[Round "6"]
[White "PavelShkapenko"]
[Black "PapaieDudu"]
[Result "1-0"]
[WhiteElo "2755"]
[BlackElo "2445"]
[TimeControl "180+1"]
[EndTime "9:03:25 PDT"]
[Termination "PavelShkapenko won by resignation"]

1. e4 {[%clk 0:03:00.9]} 1... c5 {[%clk 0:02:54.2]} 2. Nc3 {[%clk 0:03:00.2]}
2... a6 {[%clk 0:02:52.7]} 3. g3 {[%clk 0:02:59.4]} 3... e6 {[%clk 0:02:52.5]}
4. Bg2 {[%clk 0:02:58.2]} 4... Nc6 {[%clk 0:02:53.1]} 5. d3 {[%clk 0:02:54.2]}
5... Nf6 {[%clk 0:02:51.8]} 6. Nge2 {[%clk 0:02:47.9]} 6... d5 {[%clk
0:02:52.1]} 7. exd5 {[%clk 0:02:46.9]} 7... exd5 {[%clk 0:02:52.6]} 8. Bg5
{[%clk 0:02:46.1]} 8... Be7 {[%clk 0:02:51.9]} 9. Bxf6 {[%clk 0:02:43.3]} 9...
Bxf6 {[%clk 0:02:52]} 10. Nxd5 {[%clk 0:02:43.9]} 10... Bxb2 {[%clk 0:02:50.6]}
11. Rb1 {[%clk 0:02:44.5]} 11... Be5 {[%clk 0:02:48.1]} 12. Nb6 {[%clk
0:02:43.3]} 12... Rb8 {[%clk 0:02:45.8]} 13. Nc4 {[%clk 0:02:43.5]} 13... Bc7
{[%clk 0:02:44.1]} 14. O-O {[%clk 0:02:33.8]} 14... O-O {[%clk 0:02:43.9]} 15.
Nc3 {[%clk 0:02:23.4]} 15... Be6 {[%clk 0:02:40.2]} 16. Bxc6 {[%clk 0:02:04.4]}
16... bxc6 {[%clk 0:02:39.6]} 17. Rxb8 {[%clk 0:02:05]} 17... Bxb8 {[%clk
0:02:32.5]} 18. Ne4 {[%clk 0:02:03.6]} 18... Bh3 {[%clk 0:02:27.3]} 19. Re1
{[%clk 0:02:02.4]} 19... Qd5 {[%clk 0:02:17.8]} 20. Ne3 {[%clk 0:02:01]} 20...
Qe5 {[%clk 0:01:58.5]} 21. f4 {[%clk 0:01:52.5]} 21... Qd4 {[%clk 0:01:08.9]}
22. Qh5 {[%clk 0:01:47.6]} 22... Bc8 {[%clk 0:01:06.8]} 23. Qxc5 {[%clk
0:01:43.7]} 23... Qb2 {[%clk 0:00:47.7]} 24. Nf5 {[%clk 0:01:27.8]} 24... Be6
{[%clk 0:00:33.1]} 25. Ne7+ {[%clk 0:01:26]} 25... Kh8 {[%clk 0:00:33]} 26. Ng6+
{[%clk 0:01:25.9]} 26... fxg6 {[%clk 0:00:21.3]} 27. Qxf8+ {[%clk 0:01:25.6]}
27... Bg8 {[%clk 0:00:21.9]} 28. Ng5 {[%clk 0:01:25.9]} 28... Ba7+ {[%clk
0:00:14]} 29. Kh1 {[%clk 0:01:22.1]} 29... h6 {[%clk 0:00:10.4]} 30. Qxg8+
{[%clk 0:01:21.5]} 1-0

[Event "Early-Titled-Tuesday-Blitz-March-26-2024"]
[Site "Chess.com"]
[Date "2024.03.26"]
[Round "6"]
[White "Golubovsky"]
[Black "rhwr"]
[Result "0-1"]
[WhiteElo "2496"]
[BlackElo "2326"]
[TimeControl "180+1"]
[EndTime "9:03:44 PDT"]
[Termination "rhwr won on time"]

1. e4 {[%clk 0:03:00.9]} 1... c5 {[%clk 0:02:58.5]} 2. Nf3 {[%clk 0:02:56.9]}
2... d6 {[%clk 0:02:58.1]} 3. d4 {[%clk 0:02:57.2]} 3... cxd4 {[%clk 0:02:58.8]}
4. Nxd4 {[%clk 0:02:58.1]} 4... Nf6 {[%clk 0:02:59.1]} 5. Nc3 {[%clk 0:02:57.9]}
5... e5 {[%clk 0:02:59.8]} 6. Bb5+ {[%clk 0:02:55.9]} 6... Bd7 {[%clk
0:02:59.6]} 7. Bxd7+ {[%clk 0:02:44.7]} 7... Qxd7 {[%clk 0:03:00]} 8. Nf5 {[%clk
0:02:43.9]} 8... d5 {[%clk 0:02:57.3]} 9. Bg5 {[%clk 0:02:28.4]} 9... Nxe4
{[%clk 0:02:50.5]} 10. Nxe4 {[%clk 0:01:58.2]} 10... dxe4 {[%clk 0:02:49.9]} 11.
Qxd7+ {[%clk 0:01:39.9]} 11... Nxd7 {[%clk 0:02:49.9]} 12. O-O-O {[%clk
0:01:33.6]} 12... f6 {[%clk 0:02:49.6]} 13. Bh4 {[%clk 0:01:23.5]} 13... g5
{[%clk 0:02:47.7]} 14. Bg3 {[%clk 0:01:23.3]} 14... h5 {[%clk 0:02:43.8]} 15. h4
{[%clk 0:01:21.1]} 15... g4 {[%clk 0:02:43.6]} 16. Rhe1 {[%clk 0:01:13]} 16...
Nc5 {[%clk 0:02:38.5]} 17. Re3 {[%clk 0:00:37.5]} 17... a5 {[%clk 0:02:34.3]}
18. Kb1 {[%clk 0:00:16.7]} 18... Rd8 {[%clk 0:02:24.5]} 19. Rxd8+ {[%clk
0:00:15.5]} 19... Kxd8 {[%clk 0:02:24.4]} 20. Bh2 {[%clk 0:00:08.9]} 20... Rh7
{[%clk 0:02:22.1]} 21. Bg1 {[%clk 0:00:07.9]} 21... Rd7 {[%clk 0:02:21.4]} 22.
Kc1 {[%clk 0:00:08.2]} 22... b5 {[%clk 0:02:15.5]} 23. a3 {[%clk 0:00:02.8]}
23... b4 {[%clk 0:02:13.9]} 24. axb4 {[%clk 0:00:03]} 24... axb4 {[%clk
0:02:14.3]} 25. f3 {[%clk 0:00:01.2]} 25... exf3 {[%clk 0:02:06]} 26. gxf3
{[%clk 0:00:01.5]} 26... gxf3 {[%clk 0:02:03.6]} 27. Rxf3 {[%clk 0:00:01.6]}
27... Kc7 {[%clk 0:01:54.8]} 28. Be3 {[%clk 0:00:02.2]} 28... Kc6 {[%clk
0:01:53.5]} 29. b3 {[%clk 0:00:02.2]} 29... Ne4 {[%clk 0:01:48.5]} 30. Ng3
{[%clk 0:00:02]} 30... Nc3 {[%clk 0:01:46.6]} 31. Rxf6+ {[%clk 0:00:01.9]} 31...
Kb5 {[%clk 0:01:41.1]} 32. Bd2 {[%clk 0:00:01.9]} 32... Na2+ {[%clk 0:01:38.1]}
33. Kd1 {[%clk 0:00:02.5]} 33... Bg7 {[%clk 0:01:31.3]} 34. Rf5 {[%clk
0:00:02.5]} 34... Rd5 {[%clk 0:01:23.9]} 35. Nxh5 {[%clk 0:00:01.8]} 35... Bh6
{[%clk 0:01:23]} 0-1

[Event "Early-Titled-Tuesday-Blitz-March-26-2024"]
[Site "Chess.com"]
[Date "2024.03.26"]
[Round "6"]
[White "amiralfio"]
[Black "GMAneta"]
[Result "0-1"]
[WhiteElo "2734"]
[BlackElo "2575"]
[TimeControl "180+1"]
[EndTime "9:03:46 PDT"]
[Termination "GMAneta won on time"]

1. c4 {[%clk 0:02:59.4]} 1... Nf6 {[%clk 0:02:58.6]} 2. Nf3 {[%clk 0:02:56.3]}
2... g6 {[%clk 0:02:57.9]} 3. Nc3 {[%clk 0:02:55.7]} 3... Bg7 {[%clk 0:02:57.9]}
4. e4 {[%clk 0:02:56]} 4... O-O {[%clk 0:02:51.4]} 5. d4 {[%clk 0:02:54]} 5...
d6 {[%clk 0:02:51.7]} 6. h3 {[%clk 0:02:54.5]} 6... c5 {[%clk 0:02:49.7]} 7. d5
{[%clk 0:02:54.6]} 7... e6 {[%clk 0:02:48.2]} 8. Bd3 {[%clk 0:02:54.7]} 8...
exd5 {[%clk 0:02:48.4]} 9. exd5 {[%clk 0:02:55.6]} 9... Re8+ {[%clk 0:02:46.5]}
10. Be3 {[%clk 0:02:54.5]} 10... Bh6 {[%clk 0:02:45.4]} 11. O-O {[%clk
0:02:52.6]} 11... Bxe3 {[%clk 0:02:43.8]} 12. fxe3 {[%clk 0:02:53.1]} 12... Rxe3
{[%clk 0:02:43.1]} 13. Qd2 {[%clk 0:02:49.9]} 13... Qe7 {[%clk 0:02:35.3]} 14.
Rae1 {[%clk 0:02:37.4]} 14... Rxe1 {[%clk 0:02:34.9]} 15. Rxe1 {[%clk
0:02:38.3]} 15... Qf8 {[%clk 0:02:33.6]} 16. Qf4 {[%clk 0:02:30.8]} 16... Nbd7
{[%clk 0:02:32.1]} 17. Nb5 {[%clk 0:02:31]} 17... Ne8 {[%clk 0:02:31.7]} 18.
Rxe8 {[%clk 0:02:06.2]} 18... Qxe8 {[%clk 0:02:27.6]} 19. Nc7 {[%clk 0:02:05.9]}
19... Qd8 {[%clk 0:02:25.1]} 20. Nxa8 {[%clk 0:02:03.9]} 20... Nf6 {[%clk
0:02:22.8]} 21. Ng5 {[%clk 0:01:13.3]} 21... Kg7 {[%clk 0:02:19]} 22. Qh4 {[%clk
0:01:07]} 22... h6 {[%clk 0:02:15.9]} 23. Ne4 {[%clk 0:01:01.4]} 23... g5 {[%clk
0:02:15.9]} 24. Nxg5 {[%clk 0:00:32.9]} 24... hxg5 {[%clk 0:02:13]} 25. Qxg5+
{[%clk 0:00:33.8]} 25... Kf8 {[%clk 0:02:11.2]} 26. Nc7 {[%clk 0:00:33.2]} 26...
a6 {[%clk 0:02:10.7]} 27. Qh6+ {[%clk 0:00:28.2]} 27... Ke7 {[%clk 0:02:10]} 28.
g4 {[%clk 0:00:04]} 28... Qxc7 {[%clk 0:02:07]} 29. g5 {[%clk 0:00:04.7]} 29...
Nd7 {[%clk 0:02:04]} 30. g6 {[%clk 0:00:03]} 30... Qd8 {[%clk 0:01:55.5]} 31. g7
{[%clk 0:00:03]} 31... Nf6 {[%clk 0:01:53.4]} 32. Qh8 {[%clk 0:00:03.4]} 32...
Qg8 {[%clk 0:01:47.7]} 33. Bh7 {[%clk 0:00:03.7]} 33... Qd8 {[%clk 0:01:30.1]}
34. h4 {[%clk 0:00:04.2]} 34... Bg4 {[%clk 0:01:26.8]} 35. Kf2 {[%clk
0:00:03.4]} 35... Bh5 {[%clk 0:01:26.5]} 0-1

[Event "Early-Titled-Tuesday-Blitz-March-26-2024"]
[Site "Chess.com"]
[Date "2024.03.26"]
[Round "6"]
[White "Matrix3x3a"]
[Black "ckgchess"]
[Result "1-0"]
[WhiteElo "2625"]
[BlackElo "2906"]
[TimeControl "180+1"]
[EndTime "9:03:50 PDT"]
[Termination "Matrix3x3a won by checkmate"]

1. d4 {[%clk 0:03:00.9]} 1... Nf6 {[%clk 0:02:59.8]} 2. c4 {[%clk 0:03:00.2]}
2... g6 {[%clk 0:03:00]} 3. Nc3 {[%clk 0:02:59.5]} 3... Bg7 {[%clk 0:03:00.7]}
4. Nf3 {[%clk 0:02:58.6]} 4... O-O {[%clk 0:03:01.6]} 5. Bg5 {[%clk 0:02:58]}
5... d6 {[%clk 0:02:59.6]} 6. e3 {[%clk 0:02:57.6]} 6... h6 {[%clk 0:02:58.2]}
7. Bh4 {[%clk 0:02:55.1]} 7... Nbd7 {[%clk 0:02:56.8]} 8. Be2 {[%clk 0:02:54.2]}
8... e5 {[%clk 0:02:57]} 9. Qc2 {[%clk 0:02:53.6]} 9... Re8 {[%clk 0:02:56.8]}
10. O-O {[%clk 0:02:50.3]} 10... g5 {[%clk 0:02:42.9]} 11. Bg3 {[%clk
0:02:49.5]} 11... Nh5 {[%clk 0:02:43.2]} 12. Rfd1 {[%clk 0:02:32.5]} 12... Nxg3
{[%clk 0:02:30.5]} 13. hxg3 {[%clk 0:02:33.4]} 13... exd4 {[%clk 0:02:25]} 14.
Nxd4 {[%clk 0:02:31.6]} 14... Nc5 {[%clk 0:02:14.6]} 15. b4 {[%clk 0:02:23.1]}
15... Ne6 {[%clk 0:02:07.3]} 16. Nf5 {[%clk 0:02:21.7]} 16... Bf8 {[%clk
0:02:02.1]} 17. c5 {[%clk 0:02:10.9]} 17... a5 {[%clk 0:01:05.3]} 18. cxd6
{[%clk 0:01:36.3]} 18... cxd6 {[%clk 0:01:06.2]} 19. Bb5 {[%clk 0:01:18.8]}
19... Bd7 {[%clk 0:00:51.4]} 20. Bxd7 {[%clk 0:01:18.3]} 20... Qxd7 {[%clk
0:00:52.3]} 21. Nd5 {[%clk 0:01:18]} 21... Qd8 {[%clk 0:00:30.9]} 22. a3 {[%clk
0:00:57.8]} 22... axb4 {[%clk 0:00:30.9]} 23. axb4 {[%clk 0:00:57.1]} 23... Rxa1
{[%clk 0:00:31.2]} 24. Rxa1 {[%clk 0:00:57.5]} 24... Bg7 {[%clk 0:00:25]} 25.
Rd1 {[%clk 0:00:55.7]} 25... Be5 {[%clk 0:00:21.3]} 26. Nxh6+ {[%clk 0:00:43.7]}
26... Kf8 {[%clk 0:00:20.4]} 27. Qh7 {[%clk 0:00:31.5]} 27... Bg7 {[%clk
0:00:20.6]} 28. Qg8# {[%clk 0:00:30.9]} 1-0

[Event "Early-Titled-Tuesday-Blitz-March-26-2024"]
[Site "Chess.com"]
[Date "2024.03.26"]
[Round "6"]
[White "GaiozNigalidze"]
[Black "ChelsieMonica"]
[Result "0-1"]
[WhiteElo "2714"]
[BlackElo "2556"]
[TimeControl "180+1"]
[EndTime "9:03:50 PDT"]
[Termination "ChelsieMonica won by resignation"]

1. d4 {[%clk 0:03:00.9]} 1... Nf6 {[%clk 0:02:59.6]} 2. c4 {[%clk 0:03:00.4]}
2... b6 {[%clk 0:02:59]} 3. Nc3 {[%clk 0:02:58.9]} 3... Bb7 {[%clk 0:02:58.2]}
4. d5 {[%clk 0:02:59.4]} 4... e5 {[%clk 0:02:57.6]} 5. a3 {[%clk 0:02:59.5]}
5... g6 {[%clk 0:02:56.1]} 6. g3 {[%clk 0:02:59.5]} 6... Bg7 {[%clk 0:02:56.6]}
7. Bg2 {[%clk 0:03:00]} 7... O-O {[%clk 0:02:56.8]} 8. e4 {[%clk 0:02:59.2]}
8... d6 {[%clk 0:02:57]} 9. Nf3 {[%clk 0:02:54.6]} 9... Bc8 {[%clk 0:02:56.9]}
10. b4 {[%clk 0:02:51.2]} 10... a5 {[%clk 0:02:55.6]} 11. Bb2 {[%clk 0:02:43.3]}
11... Na6 {[%clk 0:02:48.8]} 12. Qb3 {[%clk 0:02:42.9]} 12... Bd7 {[%clk
0:02:45.9]} 13. O-O {[%clk 0:02:42.1]} 13... Qc8 {[%clk 0:02:42]} 14. Rfe1
{[%clk 0:02:39.7]} 14... Bh3 {[%clk 0:02:41.3]} 15. Bh1 {[%clk 0:02:39.9]} 15...
h5 {[%clk 0:02:41.7]} 16. Nb5 {[%clk 0:02:25.9]} 16... Qg4 {[%clk 0:02:23.3]}
17. Nh4 {[%clk 0:01:50.3]} 17... Qc8 {[%clk 0:02:14.8]} 18. Qc3 {[%clk
0:01:45.4]} 18... g5 {[%clk 0:02:04.2]} 19. Nf3 {[%clk 0:01:41.3]} 19... Nh7
{[%clk 0:01:52.4]} 20. Bc1 {[%clk 0:01:34.1]} 20... Qd8 {[%clk 0:01:51.3]} 21.
Bd2 {[%clk 0:01:06.2]} 21... f5 {[%clk 0:01:43.7]} 22. exf5 {[%clk 0:01:04.9]}
22... Bxf5 {[%clk 0:01:42.4]} 23. Qe3 {[%clk 0:01:04]} 23... Bf6 {[%clk
0:01:39.3]} 24. Bc3 {[%clk 0:00:48.2]} 24... g4 {[%clk 0:01:35.7]} 25. Nd2
{[%clk 0:00:48.9]} 25... Bg5 {[%clk 0:01:35.6]} 26. Qe2 {[%clk 0:00:47.6]} 26...
Nf6 {[%clk 0:01:29.5]} 27. bxa5 {[%clk 0:00:43]} 27... bxa5 {[%clk 0:01:29.2]}
28. Bxa5 {[%clk 0:00:43.9]} 28... Rf7 {[%clk 0:01:27.6]} 29. Be4 {[%clk
0:00:39.4]} 29... Bxd2 {[%clk 0:01:21.7]} 30. Bxf5 {[%clk 0:00:33.1]} 30... Bxa5
{[%clk 0:01:21.7]} 31. Rf1 {[%clk 0:00:25.4]} 31... Nc5 {[%clk 0:01:19.2]} 32.
f3 {[%clk 0:00:24.1]} 32... Rg7 {[%clk 0:01:15.9]} 33. fxg4 {[%clk 0:00:23.6]}
33... Nxg4 {[%clk 0:01:14.5]} 34. Rab1 {[%clk 0:00:16.1]} 34... Qg5 {[%clk
0:01:13.6]} 35. Bc2 {[%clk 0:00:11.8]} 35... Qe3+ {[%clk 0:01:12.1]} 36. Qxe3
{[%clk 0:00:11.5]} 36... Nxe3 {[%clk 0:01:13]} 37. Bf5 {[%clk 0:00:11.8]} 37...
Nxf1 {[%clk 0:01:12.6]} 0-1

[Event "Early-Titled-Tuesday-Blitz-March-26-2024"]
[Site "Chess.com"]
[Date "2024.03.26"]
[Round "6"]
[White "mortngabriel"]
[Black "Kunalm64"]
[Result "0-1"]
[WhiteElo "2486"]
[BlackElo "2635"]
[TimeControl "180+1"]
[EndTime "9:03:52 PDT"]
[Termination "Kunalm64 won by resignation"]

1. d4 {[%clk 0:03:00.9]} 1... Nf6 {[%clk 0:02:59.6]} 2. Nf3 {[%clk 0:03:01.1]}
2... e6 {[%clk 0:02:59.8]} 3. c4 {[%clk 0:03:01.3]} 3... Bb4+ {[%clk 0:02:59.8]}
4. Bd2 {[%clk 0:03:00.8]} 4... a5 {[%clk 0:02:59.6]} 5. g3 {[%clk 0:02:55.1]}
5... b6 {[%clk 0:02:59]} 6. Bg2 {[%clk 0:02:55.1]} 6... Bb7 {[%clk 0:02:59.5]}
7. O-O {[%clk 0:02:54.5]} 7... Bxd2 {[%clk 0:02:59.8]} 8. Qxd2 {[%clk
0:02:50.1]} 8... O-O {[%clk 0:03:00.5]} 9. Nc3 {[%clk 0:02:49.6]} 9... d6 {[%clk
0:03:00.8]} 10. Rfe1 {[%clk 0:02:44.1]} 10... Ne4 {[%clk 0:02:57.6]} 11. Nxe4
{[%clk 0:02:43.3]} 11... Bxe4 {[%clk 0:02:58.5]} 12. Qc3 {[%clk 0:02:38.7]}
12... Nd7 {[%clk 0:02:56.9]} 13. b3 {[%clk 0:02:33]} 13... Qe7 {[%clk 0:02:55]}
14. a3 {[%clk 0:02:30]} 14... h6 {[%clk 0:02:53.6]} 15. b4 {[%clk 0:02:30.2]}
15... axb4 {[%clk 0:02:39.9]} 16. axb4 {[%clk 0:02:31.1]} 16... c5 {[%clk
0:02:40.2]} 17. Nd2 {[%clk 0:02:15]} 17... Bxg2 {[%clk 0:02:39.3]} 18. Kxg2
{[%clk 0:02:15.9]} 18... f5 {[%clk 0:02:30.7]} 19. e3 {[%clk 0:01:34.1]} 19...
e5 {[%clk 0:02:27.4]} 20. dxc5 {[%clk 0:01:28.3]} 20... dxc5 {[%clk 0:02:27.1]}
21. bxc5 {[%clk 0:01:21.5]} 21... Nxc5 {[%clk 0:02:23.7]} 22. Nb3 {[%clk
0:01:19.9]} 22... Ne4 {[%clk 0:02:15.1]} 23. Qd3 {[%clk 0:01:17.1]} 23... Rad8
{[%clk 0:02:12.4]} 24. Qc2 {[%clk 0:01:08.6]} 24... Ng5 {[%clk 0:02:12.2]} 25.
c5 {[%clk 0:00:49.5]} 25... bxc5 {[%clk 0:02:07.1]} 26. Nxc5 {[%clk 0:00:46]}
26... Rc8 {[%clk 0:02:03.5]} 27. Qb3+ {[%clk 0:00:39.4]} 27... Kh8 {[%clk
0:02:00.3]} 28. h4 {[%clk 0:00:29.1]} 28... Rxc5 {[%clk 0:01:42.2]} 29. hxg5
{[%clk 0:00:28.7]} 29... Qxg5 {[%clk 0:01:42.9]} 30. Rac1 {[%clk 0:00:22.7]}
30... Rxc1 {[%clk 0:01:41.5]} 31. Rxc1 {[%clk 0:00:23.6]} 31... f4 {[%clk
0:01:42]} 32. exf4 {[%clk 0:00:21.5]} 32... exf4 {[%clk 0:01:42.1]} 33. Qf3
{[%clk 0:00:21.8]} 33... Kg8 {[%clk 0:01:27.2]} 34. Ra1 {[%clk 0:00:18.7]} 34...
fxg3 {[%clk 0:01:21.3]} 35. Qxg3 {[%clk 0:00:16]} 35... Qd5+ {[%clk 0:01:21.4]}
36. Kh2 {[%clk 0:00:13.2]} 36... Rf3 {[%clk 0:01:20.3]} 37. Qg2 {[%clk
0:00:07.9]} 37... Qe5+ {[%clk 0:01:16]} 38. Kh1 {[%clk 0:00:05.2]} 38... Qxa1+
{[%clk 0:01:15.8]} 0-1

[Event "Early-Titled-Tuesday-Blitz-March-26-2024"]
[Site "Chess.com"]
[Date "2024.03.26"]
[Round "6"]
[White "InitiatingASC"]
[Black "Aslanov_Umid"]
[Result "1-0"]
[WhiteElo "2372"]
[BlackElo "2613"]
[TimeControl "180+1"]
[EndTime "9:03:53 PDT"]
[Termination "InitiatingASC won by resignation"]

1. d4 {[%clk 0:03:00.1]} 1... d5 {[%clk 0:03:00.2]} 2. c4 {[%clk 0:02:55.6]}
2... e6 {[%clk 0:03:00.4]} 3. cxd5 {[%clk 0:02:50.5]} 3... exd5 {[%clk
0:03:01.3]} 4. Nc3 {[%clk 0:02:46.7]} 4... Nf6 {[%clk 0:02:59.7]} 5. Nf3 {[%clk
0:02:45.7]} 5... c6 {[%clk 0:02:59.8]} 6. Bg5 {[%clk 0:02:43.1]} 6... Be7 {[%clk
0:02:56]} 7. Qc2 {[%clk 0:02:39.6]} 7... g6 {[%clk 0:02:55.7]} 8. e3 {[%clk
0:02:38.7]} 8... Bf5 {[%clk 0:02:56.2]} 9. Bd3 {[%clk 0:02:36.3]} 9... Bxd3
{[%clk 0:02:56.5]} 10. Qxd3 {[%clk 0:02:35.6]} 10... Nbd7 {[%clk 0:02:57.2]} 11.
O-O {[%clk 0:02:30.8]} 11... O-O {[%clk 0:02:56.7]} 12. Rab1 {[%clk 0:02:27.3]}
12... a5 {[%clk 0:02:55.2]} 13. a3 {[%clk 0:02:25.1]} 13... a4 {[%clk
0:02:55.8]} 14. Qc2 {[%clk 0:02:22.7]} 14... Qa5 {[%clk 0:02:56]} 15. Ne5 {[%clk
0:02:18.5]} 15... Rfe8 {[%clk 0:02:52.4]} 16. f4 {[%clk 0:01:58.4]} 16... Nxe5
{[%clk 0:02:09.7]} 17. fxe5 {[%clk 0:01:46.8]} 17... Nd7 {[%clk 0:02:10]} 18.
Qf2 {[%clk 0:01:26.3]} 18... Bxg5 {[%clk 0:01:42.9]} 19. Qxf7+ {[%clk
0:01:23.6]} 19... Kh8 {[%clk 0:01:43.8]} 20. Qxd7 {[%clk 0:01:19.8]} 20... Bxe3+
{[%clk 0:01:06.9]} 21. Kh1 {[%clk 0:01:17.9]} 21... Qd8 {[%clk 0:01:07.6]} 22.
Qxb7 {[%clk 0:01:01]} 22... Qe7 {[%clk 0:01:01.7]} 23. Qxc6 {[%clk 0:00:57]}
23... Bxd4 {[%clk 0:01:00.5]} 24. Nxd5 {[%clk 0:00:39.7]} 24... Qxe5 {[%clk
0:00:57.8]} 25. Nf6 {[%clk 0:00:37.1]} 25... Rac8 {[%clk 0:00:38.3]} 26. Qd7
{[%clk 0:00:28.2]} 26... Qe7 {[%clk 0:00:29.7]} 27. Qxd4 {[%clk 0:00:23.7]} 1-0